bitfinex/quotes_ETHUSD_20251125
["timestamp","ask_amount","ask_price","bid_price","bid_amount"]
[1764072931460,0.405504,2919.7,2919.6,0.001]
[1764072931860,0.862904,2919.7,2919.6,0.001]
[1764072932195,0.862904,2919.7,2918.0,0.001]
[1764072932196,0.862904,2919.7,2918.0,0.09157688]
[1764072932480,0.1858,2918.5,2918.0,0.001]
[1764072932677,0.233,2918.4,2918.0,0.001]
[1764072932852,0.405504,2918.2,2917.4,0.001]
[1764072933052,0.1858,2917.8,2917.4,0.001]
[1764072933241,4.59770079,2917.7,2915.5,0.1648]
[1764072933441,0.405504,2917.2,2914.6,3.95919679]
[1764072933645,0.405504,2916.8,2915.1,0.09057688]
[1764072933876,0.405504,2916.6,2914.5,3.88910665]
[1764072934082,1.13109811,2916.4,2914.8,0.09057688]
[1764072934280,0.6432,2916.7,2914.5,3.95919679]
[1764072934281,0.4574,2916.6,2914.5,3.95919679]
[1764072934477,0.233,2916.3,2915.6,0.09057688]
[1764072935046,0.6904,2916.3,2915.6,0.09057688]
[1764072935455,0.6904,2916.3,2914.7,3.43079411]
[1764072935456,0.1858,2915.7,2913.1,3.48276455]
[1764072935654,0.233,2915.6,2914.1,3.6175198]
[1764072935956,0.233,2915.5,2915.3,0.09057688]
[1764072936168,0.4566,2916.2,2915.6,0.09057688]
[1764072936485,0.233,2916.1,2916.0,0.09057688]
[1764072936775,0.233,2916.1,2915.8,0.09057688]
[1764072937076,0.233,2916.1,2914.5,0.458]
[1764072937248,0.233,2916.1,2915.1,0.09057688]
[1764072937464,3.66231779,2916.1,2915.1,0.09057688]
[1764072937765,0.233,2916.1,2915.0,0.09057688]
[1764072937970,0.405504,2916.0,2913.8,0.1648]
[1764072938292,0.233,2915.9,2915.1,0.09057688]
[1764072938602,0.4188,2915.9,2914.6,3.43100253]
[1764072938760,0.4574,2915.8,2914.7,0.09057688]
[1764072938970,0.4574,2915.8,2915.0,0.09057688]
[1764072939463,0.233,2915.7,2915.0,0.09057688]
[1764072939862,0.4574,2915.6,2915.0,0.09057688]
[1764072940062,0.4574,2915.6,2914.8,0.09057688]
[1764072940289,0.233,2915.5,2914.8,0.09057688]
[1764072940984,0.4574,2915.4,2914.6,0.09057688]
[1764072941291,0.4574,2915.4,2914.3,0.09057688]
[1764072941492,0.4574,2915.4,2913.9,0.05]
[1764072941693,0.4574,2915.4,2914.2,0.09057688]
[1764072942001,0.4574,2915.4,2914.8,0.09057688]
[1764072942382,0.232,2915.3,2914.4,0.458]
[1764072942580,0.4574,2915.8,2915.1,0.09057688]
[1764072942806,0.1858,2915.9,2915.1,0.09057688]
[1764072942807,0.1858,2915.9,2915.1,3.69087774]
[1764072942970,0.1858,2915.9,2915.3,0.09057688]
[1764072942971,0.232,2915.7,2915.3,0.09057688]
[1764072943898,0.1858,2915.9,2915.3,0.09057688]
[1764072944076,0.1858,2915.9,2915.1,7.03067909]
[1764072944394,0.232,2915.8,2915.5,0.09057688]
[1764072944986,0.6894,2915.8,2915.3,0.09057688]
[1764072945184,0.232,2915.8,2915.3,0.09057688]
[1764072945775,0.232,2915.8,2915.1,3.6002416]
[1764072946005,0.232,2915.7,2915.2,0.458]
[1764072946205,0.6432,2916.7,2916.0,0.09057688]
[1764072946406,0.6894,2916.6,2916.0,0.09057688]
[1764072947076,0.4574,2916.6,2916.0,0.09057688]
[1764072947281,0.002,2916.2,2916.1,0.09057688]
[1764072947602,0.234,2916.2,2915.8,0.09057688]
[1764072947787,0.234,2916.2,2915.1,0.6279]
[1764072947991,0.6914,2916.2,2915.5,0.09057688]
[1764072948187,0.234,2916.2,2915.5,0.09057688]
[1764072948391,0.4574,2916.1,2915.5,0.09057688]
[1764072948814,0.1858,2915.6,2915.1,0.1699]
[1764072948977,0.232,2915.5,2915.1,0.1699]
[1764072949179,0.002,2916.2,2915.1,0.6279]
[1764072949489,0.232,2916.1,2915.6,0.09057688]
[1764072950080,0.7297,2916.0,2915.1,0.6279]
[1764072950286,0.002,2916.2,2916.1,0.1709]
[1764072950590,0.232,2916.2,2916.1,0.26147688]
[1764072950799,0.232,2916.2,2916.1,0.73777688]
[1764072951003,0.232,2916.2,2916.1,4.16701456]
[1764072951515,0.002,2916.5,2916.4,0.04057688]
[1764072951814,0.234,2916.5,2916.4,0.09057688]
[1764072952419,0.234,2916.5,2916.4,0.56687688]
[1764072952628,0.234,2916.5,2916.4,0.09057688]
[1764072952985,0.234,2916.5,2916.4,3.5194618]
[1764072953789,0.002,2916.8,2916.7,0.09057688]
[1764072954318,0.229,2916.8,2916.7,0.4763]
[1764072954518,0.232,2917.0,2916.7,5.16401614]
[1764072954724,0.232,2917.0,2916.9,4.05269891]
[1764072955035,0.4977,2918.6,2916.9,21.10360783]
[1764072955190,0.232,2918.4,2918.1,0.09057688]
[1764072955509,0.232,2918.4,2918.3,0.09057688]
[1764072955692,0.4977,2918.6,2918.3,0.09057688]
[1764072956028,0.4977,2918.6,2918.4,0.09057688]
[1764072956320,0.4977,2918.6,2917.5,3.96212203]
[1764072956321,0.4178,2918.5,2917.5,3.96212203]
[1764072956617,0.4178,2918.5,2918.2,0.09057688]
[1764072957321,0.9155,2918.5,2917.7,0.09057688]
[1764072957825,0.232,2918.4,2918.0,0.09057688]
[1764072958026,0.7087,2918.4,2918.0,0.09057688]
[1764072958393,0.232,2918.4,2918.0,0.09057688]
[1764072958588,0.4767,2918.3,2917.9,0.09057688]
[1764072958795,0.4767,2918.3,2917.7,0.09057688]
[1764072959345,0.4767,2918.3,2916.7,0.81619411]
[1764072959346,0.1858,2919.1,2918.1,3.96212203]
[1764072959491,0.1858,2919.1,2918.3,0.09057688]
[1764072959492,0.7077,2919.0,2918.3,0.09057688]
[1764072960122,0.7069,2919.0,2918.3,0.09057688]
[1764072960299,0.2302,2919.0,2918.3,0.09057688]
[1764072960632,0.4767,2918.9,2918.3,0.09057688]
[1764072961226,0.232,2918.8,2918.3,0.09057688]
[1764072961720,3.61152581,2919.1,2918.3,0.09057688]
[1764072961721,0.4767,2918.7,2918.3,0.09057688]
[1764072962025,0.231,2918.7,2918.6,0.09057688]
[1764072962605,0.1858,2919.1,2918.2,3.96212203]
[1764072962801,0.231,2920.3,2919.1,2.501662]
[1764072962996,0.231,2920.3,2920.2,4.14329891]
[1764072963307,0.231,2920.3,2920.2,3.60559986]
[1764072963508,0.231,2920.3,2920.1,0.09057688]
[1764072963693,0.231,2920.3,2920.2,0.09057688]
[1764072963893,0.1913,2920.9,2920.4,0.09057688]
[1764072964129,0.1913,2920.9,2919.7,0.0906]
[1764072964130,0.232,2920.8,2920.7,0.09057688]
[1764072964703,0.232,2920.8,2919.7,10.63675715]
[1764072964704,0.7087,2920.8,2919.7,10.63675715]
[1764072965031,0.7087,2920.8,2920.3,0.09057688]
[1764072965232,0.4767,2920.7,2920.3,0.09057688]
[1764072965537,0.4767,2920.7,2920.1,0.09057688]
[1764072965838,0.4767,2920.7,2919.4,0.17907883]
[1764072965998,0.1913,2919.8,2919.4,0.26965571]
[1764072966198,0.7087,2919.7,2919.4,0.26965571]
[1764072966415,0.7087,2919.7,2919.4,0.17907883]
[1764072966627,0.4767,2919.6,2919.4,0.17907883]
[1764072967512,6.85048808,2919.5,2918.4,0.09057688]
[1764072967796,3.42471681,2920.0,2917.7,3.42732086]
[1764072967797,0.17915118,2920.8,2919.5,0.26967688]
[1764072968095,0.232,2920.2,2920.1,0.09057688]
[1764072968298,0.232,2920.2,2919.9,0.09057688]
[1764072968995,0.232,2920.1,2920.0,0.09057688]
[1764072969160,0.232,2920.1,2919.5,0.1791]
[1764072969161,0.002,2920.6,2919.5,0.1791]
[1764072969363,0.232,2920.2,2920.1,0.09057688]
[1764072969794,0.232,2920.2,2919.9,0.09057688]
[1764072970177,0.232,2920.2,2919.6,3.42501618]
[1764072970377,0.7087,2920.2,2919.7,0.09057688]
[1764072970762,0.4767,2920.2,2919.7,0.09057688]
[1764072970965,0.7087,2920.1,2919.7,0.09057688]
[1764072971402,0.4767,2920.0,2919.6,0.09057688]
[1764072971618,0.4233,2919.9,2919.4,0.09057688]
[1764072971800,0.4767,2919.8,2919.1,0.09057688]
[1764072972115,0.232,2919.7,2918.3,3.60554596]
[1764072972262,0.232,2919.7,2918.6,0.09057688]
[1764072972467,0.4767,2919.6,2918.6,0.09057688]
[1764072972667,0.4767,2919.6,2918.5,0.09057688]
[1764072973095,0.1913,2918.6,2918.3,0.09057688]
[1764072973301,0.232,2918.5,2918.3,0.09057688]
[1764072973884,0.7087,2918.5,2917.7,3.51786959]
[1764072974114,0.7087,2918.5,2918.0,0.09057688]
[1764072974318,0.7087,2918.5,2918.1,0.09057688]
[1764072975190,0.7087,2918.5,2917.8,0.09057688]
[1764072975191,0.4767,2918.4,2917.8,0.09057688]
[1764072975819,3.90326758,2918.4,2917.8,0.09057688]
[1764072976190,3.90326758,2918.4,2917.3,3.4277411]
[1764072976191,0.1913,2917.9,2917.3,0.09057688]
[1764072976389,0.231,2917.8,2917.3,0.09057688]
[1764072976698,0.231,2917.8,2917.0,0.09057688]
[1764072976699,0.7077,2917.8,2917.0,0.09057688]
[1764072976906,0.7077,2917.8,2917.2,0.09057688]
[1764072977096,0.4767,2917.7,2917.2,0.09057688]
[1764072977291,3.90415731,2917.7,2917.1,0.09057688]
[1764072977590,7.33161462,2917.7,2917.1,0.09057688]
[1764072977818,0.4767,2917.6,2916.7,0.09057688]
[1764072978524,0.233,2918.7,2917.6,3.23594911]
[1764072978824,0.233,2918.6,2918.3,4.35485882]
[1764072979033,0.233,2918.6,2918.5,0.09057688]
[1764072979186,0.233,2918.6,2918.5,0.36027688]
[1764072979390,0.233,2918.6,2918.5,3.78669456]
[1764072979621,0.233,2918.6,2918.5,3.51699456]
[1764072980134,0.4767,2919.4,2918.5,6.85283536]
[1764072980301,0.233,2919.3,2918.9,0.09057688]
[1764072980885,0.233,2919.2,2918.9,0.09057688]
[1764072981114,0.4767,2919.4,2918.9,0.09057688]
[1764072981115,0.233,2919.1,2918.9,0.09057688]
[1764072981438,0.233,2919.1,2918.0,6.85400958]
[1764072981731,0.4767,2919.4,2918.8,0.09057688]
[1764072981910,0.232,2919.3,2918.8,0.09057688]
[1764072982420,0.4842,2919.2,2918.8,0.09057688]
[1764072982620,0.4842,2919.2,2918.5,0.09057688]
[1764072983291,0.4842,2919.2,2918.6,3.42630028]
[1764072983496,0.4842,2919.8,2918.8,0.09057688]
[1764072983791,0.4842,2919.8,2919.2,0.09057688]
[1764072983997,0.1913,2919.9,2919.6,0.09057688]
[1764072984638,0.002,2920.3,2919.9,0.09057688]
[1764072984639,0.0012,2920.3,2919.9,0.09057688]
[1764072984794,0.0012,2920.3,2919.3,0.1791]
[1764072984795,0.232,2920.2,2920.1,0.09057688]
[1764072985190,0.232,2920.2,2919.8,0.09057688]
[1764072985392,0.4842,2920.1,2919.4,0.09057688]
[1764072986134,0.4842,2920.1,2919.2,0.09057688]
[1764072986429,0.232,2920.0,2918.8,0.2698]
[1764072986611,0.232,2919.9,2919.5,0.09057688]
[1764072987527,0.232,2919.9,2919.2,0.1792]
[1764072987528,0.232,2919.9,2919.8,0.09057688]
[1764072988028,0.0012,2920.3,2919.8,0.09057688]
[1764072988206,0.232,2920.2,2920.1,0.09057688]
[1764072988523,0.232,2920.2,2919.9,0.09057688]
[1764072988733,0.232,2920.2,2919.5,0.09057688]
[1764072988926,0.232,2920.2,2919.7,0.09057688]
[1764072989129,0.232,2920.2,2919.4,6.85072238]
[1764072989329,0.232,2920.1,2919.8,0.09057688]
[1764072989642,0.232,2920.1,2919.7,0.09057688]
[1764072989927,0.232,2920.1,2919.8,0.09057688]
[1764072990151,0.7162,2920.1,2919.8,0.09057688]
[1764072990315,0.7162,2920.1,2919.4,6.94123466]
[1764072990510,0.7162,2920.1,2919.7,0.09057688]
[1764072990511,0.232,2920.1,2919.7,0.09057688]
[1764072990926,0.7162,2920.1,2919.4,3.42529641]
[1764072991159,0.7162,2920.1,2919.4,6.85065778]
[1764072991320,0.7162,2920.1,2919.5,0.09057688]
[1764072991640,0.7162,2920.1,2919.2,0.09057688]
[1764072991641,0.4842,2920.0,2919.2,0.09057688]
[1764072992020,0.4842,2920.0,2918.5,6.85283536]
[1764072992021,0.1818,2919.9,2918.5,6.85283536]
[1764072992225,0.1818,2919.9,2918.9,0.09057688]
[1764072992427,0.4842,2919.8,2918.9,0.09057688]
[1764072992845,0.4842,2919.8,2918.6,0.09057688]
[1764072993441,6.85001882,2919.7,2918.9,0.09057688]
[1764072993942,3.90920941,2919.7,2918.9,0.09057688]
[1764072994243,6.85001882,2919.7,2918.9,0.09057688]
[1764072994448,3.42500941,2919.7,2918.9,0.09057688]
[1764072994618,6.8498354,2919.8,2918.8,0.09057688]
[1764072994818,0.4842,2919.7,2918.8,0.09057688]
[1764072995655,3.42512672,2919.6,2918.8,0.09057688]
[1764072995814,3.42552245,2920.3,2919.3,0.09057688]
[1764072996016,0.7152,2920.2,2919.2,0.09057688]
[1764072996240,0.7152,2920.2,2918.9,0.09057688]
[1764072996443,0.4842,2920.1,2918.9,0.09057688]
[1764072997368,0.4842,2920.1,2918.6,0.72559411]
[1764072997599,3.42465753,2920.0,2918.7,10.27854864]
[1764072997875,0.231,2919.9,2919.4,0.09057688]
[1764072998340,0.231,2919.9,2919.7,0.09057688]
[1764072998540,0.0012,2920.3,2919.7,0.09057688]
[1764072998763,0.231,2920.2,2919.3,0.449]
[1764072999052,0.0012,2920.3,2919.3,0.449]
[1764072999257,0.0012,2920.3,2919.6,0.09057688]
[1764072999258,0.231,2920.2,2919.6,0.09057688]
[1764072999665,0.231,2920.2,2919.7,0.09057688]
[1764073000352,4.13963245,2920.2,2919.6,0.09057688]
[1764073000668,7.5640649,2920.2,2919.1,3.60488434]
[1764073000867,0.4842,2920.1,2919.3,0.09057688]
[1764073001663,0.4842,2920.1,2919.5,0.09057688]
[1764073001859,3.65543245,2920.2,2919.5,0.09057688]
[1764073002063,7.07993162,2920.2,2919.5,0.09057688]
[1764073002272,4.13963245,2920.2,2919.5,0.09057688]
[1764073002872,0.231,2920.2,2919.1,10.72611114]
[1764073003077,0.231,2920.2,2919.8,0.09057688]
[1764073003276,7.56411844,2920.2,2919.2,0.09057688]
[1764073003650,3.42465753,2920.0,2919.2,3.51611038]
[1764073003955,0.1818,2919.3,2918.8,3.51754797]
[1764073004139,0.231,2919.2,2918.8,6.94361347]
[1764073004344,0.231,2919.2,2918.8,3.51754797]
[1764073004571,0.231,2919.2,2918.8,6.94361347]
[1764073004772,0.231,2919.2,2918.8,3.51763472]
[1764073005088,0.7152,2919.2,2918.8,0.09157688]
[1764073005491,0.231,2919.2,2918.8,0.001]
[1764073005792,0.4842,2919.1,2918.8,0.001]
[1764073008186,3.90916338,2919.1,2918.8,0.001]
[1764073008389,7.33492676,2919.1,2918.8,0.001]
[1764073008560,6.85152676,2919.1,2918.8,0.001]
[1764073010098,3.88954813,2918.9,2918.8,0.001]
[1764073010465,4.76895213,2918.9,2918.8,0.001]
[1764073010811,1.13109811,2918.8,2918.4,0.001]
[1764073010966,0.886504,2918.5,2918.1,0.001]
[1764073011311,0.886504,2918.2,2918.1,0.001]
[1764073011500,1.43685453,2918.2,2918.1,0.001]
[1764073011801,1.43685453,2918.2,2916.4,0.001]
[1764073011802,0.405504,2918.1,2916.6,0.09057688]
[1764073011965,0.32035053,2918.0,2916.6,0.09057688]
[1764073012165,6.85424448,2917.9,2916.7,3.42853224]
[1764073012402,0.4739,2917.8,2916.7,3.42853224]
[1764073012617,0.23,2917.7,2916.6,3.51922493]
[1764073012819,0.4739,2917.6,2916.6,3.51922493]
[1764073013330,0.4739,2917.6,2916.4,0.001]
[1764073013826,0.405504,2917.4,2916.4,0.001]
[1764073014023,0.31934253,2917.3,2916.4,0.001]
[1764073014333,6.85612422,2917.1,2916.4,0.001]
[1764073014686,0.1894,2916.5,2916.4,0.001]
[1764073015031,0.4194,2916.5,2916.4,0.001]
[1764073015208,0.9004,2916.5,2916.4,0.001]
[1764073015412,0.4194,2916.5,2916.4,0.001]
[1764073015613,0.1894,2917.0,2916.4,0.001]
[1764073015815,3.42790926,2917.3,2916.4,0.001]
[1764073015816,1.19949411,2917.3,2916.7,0.09057688]
[1764073016143,0.4739,2917.7,2917.0,0.09057688]
[1764073016292,0.23,2917.6,2917.1,3.42806211]
[1764073016487,0.229,2917.5,2917.3,0.09057688]
[1764073016687,0.229,2917.5,2917.2,0.09057688]
[1764073016922,0.229,2917.5,2917.1,0.09057688]
[1764073017307,7.04381194,2917.9,2916.6,0.2716]
[1764073017308,0.229,2917.4,2916.6,0.2716]
[1764073017708,0.229,2917.4,2916.9,0.09057688]
[1764073018093,0.229,2917.4,2916.7,0.09057688]
[1764073018322,0.229,2917.4,2916.8,3.4284147]
[1764073018592,0.229,2917.4,2917.0,0.09057688]
[1764073018846,0.229,2917.4,2917.0,0.36217688]
[1764073019335,3.61652988,2917.9,2917.0,0.2716]
[1764073019538,0.229,2917.8,2917.0,0.09057688]
[1764073019923,0.7029,2917.8,2916.8,3.4284147]
[1764073020159,0.7029,2917.8,2916.8,6.8568294]
[1764073020328,3.42747463,2917.6,2916.4,0.001]
[1764073020642,6.85494926,2917.6,2916.7,0.09057688]
[1764073020804,3.42747463,2917.6,2916.7,0.09057688]
[1764073020992,0.72559411,2917.9,2916.8,0.30588414]
[1764073021191,3.42650599,2918.5,2916.8,0.2716]
[1764073021192,0.229,2917.8,2916.8,0.2716]
[1764073021535,0.229,2917.8,2917.2,0.09057688]
[1764073021689,0.229,2917.8,2916.8,0.2716]
[1764073021894,0.229,2917.8,2917.1,0.09057688]
[1764073022112,0.229,2917.7,2917.1,0.09057688]
[1764073022298,0.229,2917.7,2916.9,6.85659432]
[1764073022503,0.229,2917.7,2917.3,0.09057688]
[1764073022827,0.229,2917.6,2917.3,0.09057688]
[1764073023031,3.42695085,2918.1,2917.3,0.09057688]
[1764073023217,0.4815,2919.6,2918.0,0.0924]
[1764073023418,0.229,2919.5,2918.9,0.09057688]
[1764073023631,0.229,2919.5,2918.6,0.09057688]
[1764073023798,0.4815,2919.4,2918.4,0.09057688]
[1764073024225,0.72559411,2919.8,2918.4,0.09057688]
[1764073024226,7.5221925,2919.9,2919.0,0.09057688]
[1764073024444,0.7105,2919.8,2919.0,3.51635062]
[1764073024737,0.7105,2919.8,2919.0,0.09057688]
[1764073024958,0.4815,2919.7,2918.1,6.8537747]
[1764073025138,0.229,2919.6,2918.1,10.55226205]
[1764073025453,0.229,2919.6,2919.0,0.09057688]
[1764073025764,0.7105,2919.5,2918.4,0.09057688]
[1764073026270,0.4815,2919.4,2918.4,0.09057688]
[1764073026469,3.42547871,2919.3,2918.5,3.42641768]
[1764073026623,3.90690204,2919.4,2918.5,3.42641768]
[1764073026828,3.90686431,2919.4,2918.7,0.09057688]
[1764073027127,0.229,2919.3,2918.7,0.09057688]
[1764073027327,0.1911,2918.8,2918.0,3.51929971]
[1764073027531,0.1911,2918.8,2918.2,0.09057688]
[1764073027532,0.229,2918.7,2918.2,0.09057688]
[1764073027740,0.229,2918.7,2918.0,3.51929971]
[1764073027940,0.7105,2918.7,2918.0,3.60987659]
[1764073028361,4.13674873,2918.7,2918.0,3.51747659]
[1764073028665,0.4815,2918.6,2918.0,0.09057688]
[1764073029084,0.4815,2918.6,2918.0,3.51757043]
[1764073029361,0.4815,2918.6,2917.6,0.09057688]
[1764073029362,0.229,2918.5,2917.6,0.09057688]
[1764073029859,0.4815,2918.4,2917.5,0.09057688]
[1764073030428,0.4815,2918.4,2917.0,3.42813764]
[1764073030429,0.4815,2918.4,2917.4,6.8553193]
[1764073030636,3.90808614,2918.4,2917.6,0.09057688]
[1764073031664,7.33461532,2918.4,2917.6,0.09057688]
[1764073032155,7.33381532,2918.4,2917.6,0.09057688]
[1764073032860,7.33381532,2918.4,2917.7,3.42735716]
[1764073033243,3.90725766,2918.4,2917.7,3.42735716]
[1764073034035,7.33381532,2918.4,2917.7,3.42735716]
[1764073034644,0.229,2918.5,2918.2,0.09057688]
[1764073035270,0.229,2918.5,2918.2,3.51733689]
[1764073035778,0.7105,2918.5,2918.0,3.42695703]
[1764073035973,0.4815,2918.4,2918.0,3.42695703]
[1764073036184,0.4849,2918.1,2917.6,3.4273817]
[1764073036329,0.228,2918.0,2917.7,0.09057688]
[1764073036960,0.228,2918.0,2917.8,3.4272397]
[1764073037148,0.228,2918.0,2917.7,3.51787201]
[1764073037344,0.228,2918.0,2917.7,0.09057688]
[1764073037557,0.228,2918.0,2917.5,0.09057688]
[1764073037558,0.1911,2917.9,2917.5,0.09057688]
[1764073038752,0.6726,2917.9,2917.4,0.09057688]
[1764073039156,0.6726,2917.9,2917.5,3.42759211]
[1764073039737,0.1911,2917.9,2917.5,3.42759211]
[1764073040077,0.228,2918.0,2917.4,6.94593687]
[1764073040248,3.62312224,2917.9,2917.0,0.09057688]
[1764073040652,4.12132224,2917.9,2917.0,0.09057688]
[1764073040852,7.54844448,2917.9,2917.0,0.09057688]
[1764073041169,0.4982,2917.8,2916.9,0.09057688]
[1764073041373,3.9254587,2917.8,2916.9,0.09057688]
[1764073041670,3.9254587,2917.8,2917.1,0.09057688]
[1764073041873,0.4982,2917.8,2917.4,0.001]
[1764073042247,3.92544969,2917.8,2917.4,0.001]
[1764073042452,0.4639,2917.5,2917.4,0.001]
[1764073042777,0.6919,2917.5,2917.4,0.001]
[1764073043471,0.228,2917.5,2917.4,0.001]
[1764073043669,0.4982,2918.4,2917.4,0.36397688]
[1764073043878,0.228,2918.3,2917.7,0.09057688]
[1764073044073,0.228,2918.3,2918.0,0.09057688]
[1764073044274,0.228,2918.3,2917.4,0.001]
[1764073044275,0.7262,2918.3,2917.4,0.001]
[1764073044743,0.4982,2918.2,2917.4,0.001]
[1764073045173,0.31988085,2918.1,2917.4,0.001]
[1764073045379,6.85400958,2918.0,2917.4,0.001]
[1764073045578,0.6599,2917.5,2917.4,0.001]
[1764073045746,0.8869,2917.5,2917.4,0.001]
[1764073046080,1.3851,2917.5,2917.4,0.001]
[1764073047077,1.70532091,2917.5,2917.4,0.001]
[1764073047275,5.13291302,2917.5,2917.4,0.001]
[1764073049559,6.26401113,2917.5,2917.4,0.001]
[1764073051192,0.405504,2917.3,2916.5,0.001]
[1764073051354,0.405504,2917.1,2916.5,0.001]
[1764073051549,0.196,2916.6,2916.5,0.001]
[1764073051786,0.423,2916.6,2916.5,0.001]
[1764073051954,1.3851,2916.6,2916.5,0.001]
[1764073052787,4.81374979,2916.6,2916.5,0.001]
[1764073056262,4.81294979,2916.6,2916.5,0.001]
[1764073057457,0.6591,2916.6,2916.5,0.001]
[1764073057791,0.227,2916.6,2916.5,0.2742]
[1764073057970,0.227,2916.6,2916.5,0.63797688]
[1764073058381,4.12180157,2917.5,2916.5,0.5474]
[1764073058617,0.227,2917.4,2916.6,0.2732]
[1764073058769,0.227,2917.4,2917.0,0.09057688]
[1764073059365,0.227,2917.4,2917.0,3.5186884]
[1764073059761,0.196,2917.5,2917.0,3.5186884]
[1764073059991,0.226,2917.3,2917.0,3.5186884]
[1764073060312,3.62359562,2917.5,2917.0,0.09057688]
[1764073060478,3.62359562,2917.5,2916.7,0.09057688]
[1764073060479,0.226,2917.2,2916.7,0.09057688]
[1764073060672,0.226,2917.2,2916.7,6.94764136]
[1764073060868,0.226,2917.1,2916.7,3.51910912]
[1764073061472,0.226,2917.1,2916.7,3.42853224]
[1764073061902,0.4982,2917.0,2916.5,0.001]
[1764073062203,0.4639,2916.7,2916.5,0.001]
[1764073062399,0.226,2916.6,2916.5,0.001]
[1764073063195,0.6899,2916.6,2916.5,0.001]
[1764073063570,1.1881,2916.6,2916.5,0.001]
[1764073064071,4.61674979,2916.6,2916.5,0.001]
[1764073065891,1.1881,2916.6,2916.5,0.001]
[1764073066714,0.226,2916.6,2916.5,0.001]
[1764073067597,3.4283399,2916.9,2916.5,0.001]
[1764073067800,0.226,2916.8,2916.5,0.001]
[1764073069892,3.65443033,2916.8,2916.5,0.001]
[1764073070278,0.226,2916.8,2916.5,0.001]
[1764073070692,0.4906,2917.2,2916.5,0.001]
[1764073070891,0.226,2917.1,2916.7,0.36377688]
[1764073071282,0.226,2917.1,2916.5,0.001]
[1764073071481,0.7166,2917.1,2916.5,0.001]
[1764073072005,0.7166,2917.1,2916.5,6.8585347]
[1764073072308,0.226,2917.1,2916.5,6.8585347]
[1764073072507,3.65412595,2917.1,2916.5,3.42976735]
[1764073072879,4.14472595,2917.1,2916.5,3.42976735]
[1764073073310,0.7166,2917.1,2916.5,3.42976735]
[1764073073501,4.14468037,2917.1,2916.5,3.42976735]
[1764073073696,0.7166,2917.1,2916.5,6.8585347]
[1764073074035,4.14466953,2917.1,2916.5,0.09157688]
[1764073074932,4.1447342,2917.1,2916.5,0.001]
[1764073075228,7.0822684,2917.1,2916.5,0.001]
[1764073075425,3.6541342,2917.1,2916.5,0.001]
[1764073076018,4.1447342,2917.1,2916.5,0.001]
[1764073076333,0.32077728,2917.0,2916.5,0.001]
[1764073076704,0.81137728,2917.0,2916.5,0.001]
[1764073076935,0.4906,2917.0,2916.5,0.001]
[1764073077134,0.81138594,2916.9,2916.5,0.001]
[1764073077436,0.3208605,2916.8,2916.5,0.001]
[1764073077612,0.225,2916.7,2916.5,0.001]
[1764073078411,0.6787,2916.7,2916.5,0.001]
[1764073080105,0.4745,2916.6,2916.5,0.001]
[1764073080303,4.35684979,2916.6,2916.5,0.001]
[1764073080528,4.67778732,2916.6,2916.5,0.001]
[1764073081045,1.24913753,2916.6,2916.5,0.001]
[1764073081202,4.67778732,2916.6,2916.5,0.001]
[1764073081908,1.24913753,2916.6,2916.5,0.001]
[1764073082112,4.67778732,2916.6,2916.5,0.001]
[1764073083810,1.24913753,2916.6,2916.5,0.001]
[1764073084626,4.67778732,2916.6,2916.5,0.001]
[1764073085021,1.24913753,2916.6,2916.5,0.001]
[1764073085222,4.67778732,2916.6,2916.5,0.001]
[1764073086928,0.54593753,2916.6,2916.5,0.275]
[1764073087359,0.002,2917.1,2916.5,0.275]
[1764073087562,0.225,2917.0,2916.5,0.63957688]
[1764073087859,0.225,2917.0,2916.5,0.275]
[1764073088033,0.225,2917.0,2916.9,0.274]
[1764073088230,0.225,2917.0,2916.9,0.548]
[1764073088440,0.225,2917.0,2916.9,0.63857688]
[1764073088647,0.225,2917.0,2916.9,4.06687404]
[1764073088852,0.002,2917.1,2917.0,0.09057688]
[1764073089163,0.227,2917.1,2917.0,0.36457688]
[1764073089332,0.002,2917.1,2916.7,3.42847284]
[1764073089527,0.225,2917.0,2916.7,3.42847284]
[1764073089759,0.002,2917.1,2916.8,6.8568294]
[1764073089960,0.225,2916.9,2916.8,3.51899158]
[1764073090253,0.225,2916.9,2916.8,3.79299158]
[1764073090442,0.225,2916.9,2916.8,4.06699158]
[1764073091060,0.225,2916.9,2916.8,3.7024147]
[1764073091352,0.225,2916.9,2916.5,0.275]
[1764073091353,0.225,2916.9,2916.5,3.52031895]
[1764073091867,0.225,2916.9,2916.5,3.42974207]
[1764073092359,0.225,2916.9,2916.5,6.85850942]
[1764073092655,0.225,2916.9,2916.6,0.09057688]
[1764073092857,0.225,2916.9,2916.7,3.42853224]
[1764073093059,0.225,2916.9,2916.8,0.274]
[1764073093836,0.225,2916.9,2916.6,3.42860811]
[1764073095134,0.002,2917.1,2916.6,3.42860811]
[1764073095464,0.225,2917.0,2916.6,3.42860811]
[1764073095664,0.225,2917.0,2916.6,6.8572579]
[1764073095868,0.225,2917.0,2916.6,6.94783478]
[1764073096761,0.225,2916.9,2916.6,6.94783478]
[1764073096992,0.002,2917.1,2916.6,6.94783478]
[1764073097265,0.225,2916.8,2916.5,0.09157688]
[1764073097878,0.225,2916.8,2916.7,0.274]
[1764073098239,0.225,2916.8,2916.7,0.63857688]
[1764073098561,0.002,2917.0,2916.8,0.09057688]
[1764073098766,0.225,2916.9,2916.8,0.09057688]
[1764073099172,0.225,2916.9,2916.8,3.79299158]
[1764073099379,0.225,2916.9,2916.8,4.06699158]
[1764073099863,0.225,2916.9,2916.7,3.42846757]
[1764073100459,0.4723,2916.8,2916.5,0.001]